Cogmind - Beta 16 @@@ ROGUE MODE // 2026.01.01 @ 11:52:22 Player: Compilatron Result: Destroyed by G-47 Trooper with Particle Gun Performance ------------- Evolutions (0) 0 Regions Visited (2) 400 Robots Destroyed (13) 65 Value Destroyed (230) 230 Prototype IDs (0) 0 Alien Tech Used (0) 0 Bonus (0) 0 TOTAL SCORE: 695 Bonus ------- None Cogmind --------- Core Integrity 0/250 Matter 270/300 Energy 200/200 System Corruption 0% Temperature Cool (9) Movement Treading (240) Ox1 Location -10/Subcaves Parts ------- > --- POWER (1) -------- Subdweller Power Source > --- PROPULSION (2) --- Light Treads > --- UTILITY (2) ------ Large Storage Unit > --- WEAPON (2) ------- Assault Rifle Subdweller Machine Gun > --- INVENTORY (15) --- Light Ion Engine Subdweller Power Source Light Treads Compact Wheel Compact Wheel Disposable Heat Sink Medium Storage Unit Large Matter Pod (150) Subdweller Optics Light Assault Rifle Light Assault Rifle Mining Claw Peak State ------------ > --- POWER ------------ Subdweller Power Source > --- PROPULSION ------- Light Treads Light Treads > --- UTILITY ---------- Large Storage Unit > --- WEAPON ----------- Assault Rifle Subdweller Machine Gun > --- INVENTORY -------- Light Ion Engine Subdweller Power Source Light Treads Compact Wheel Compact Wheel Disposable Heat Sink Medium Storage Unit Large Matter Pod Subdweller Optics Light Assault Rifle Light Assault Rifle Mining Claw [Rating: 9] Favorites ----------- Power Ion Engine Engine Ion Engine Propulsion Light Treads Treads Light Treads Leg Aluminum Leg Utility Large Storage Unit Storage Large Storage Unit Protection Light Armor Plating Weapon Light Assault Rifle Energy Gun Medium Laser Ballistic Gun Light Assault Rifle Slashing Weapon Mining Claw Build | -11 -10 -10 ------- Run | Yrd Mat Sub Slots Evolved . | . . . Power . | . . . Propulsion . | . . . Utility . | . . . Weapon . | . . . Parts Attached 16 | 6 7 3 Power 3 | 1 1 1 Engine 3 | 1 1 1 Core . | . . . Reactor . | . . . Propulsion 4 | 2 2 . Treads 2 | . 2 . Leg 2 | 2 . . Wheel . | . . . Hover . | . . . Flight . | . . . Utility 3 | 1 2 . Device . | . . . Storage 2 | 1 1 . Processor . | . . . Hackware . | . . . Protection 1 | . 1 . Artifact . | . . . Weapon 6 | 2 2 2 Energy Gun 1 | . 1 . Energy Cannon . | . . . Ballistic Gun 4 | 2 . 2 Ballistic Cannon . | . . . Launcher . | . . . Special Weapon . | . . . Impact Weapon . | . . . Slashing Weapon 1 | . 1 . Piercing Weapon . | . . . Special Melee Weapon . | . . . Unidentified Prototypes . | . . . Parts Lost 7 | . 5 2 Power 2 | . 1 1 Propulsion 3 | . 2 1 Utility 1 | . 1 . Weapon 1 | . 1 . Highest Loss Streak 5 | . 5 1 To Critical Strikes . | . . . Average Backups 7 | 3 7 9 Power 1 | . 1 1 Propulsion 3 | 2 3 3 Utility 1 | . 1 2 Weapon 1 | . 1 2 Tool/Special . | . . . Unused Backups 11 | . 2 9 Power 2 | . . 2 Propulsion 5 | . 2 3 Utility 4 | . . 4 Weapon . | . . . Tool/Special . | . . . Average Slot Usage (%) 85 | . 86 78 Engine 13 | . 13 7 Treads 14 | . 13 28 Leg 12 | . 14 . Storage 14 | . 14 14 Protection 1 | . 1 . Energy Gun 6 | . 7 . Ballistic Gun 19 | . 18 25 Slashing Weapon 1 | . 1 2 Peak Build Rating 9 | 6 8 9 Average Rating 6 | 4 6 6 On Entrance 4 | . 6 6 Avg Prop Armor Cover (%) . | . . . Naked Turns . | . . . Heaviest Build 31 | 12 31 31 Greatest Support 40 | 20 40 40 Greatest Overweight (x) 1 | 1 1 . Average Overweight (x) . | . . . Largest Inventory Capacity 15 | 8 15 15 Average Capacity 14 | 7 14 15 Most Carried 13 | 6 10 13 Average Carried 7 | 4 7 9 Final Capacity 15 | 8 15 15 Final Carried 12 | 6 8 12 Class Distribution -------------------- 100% | Mutant Dominant Class ---------------- Mutant | -10/Materials Mutant | -10/Subcaves Resources | -11 -10 -10 ----------- Run | Yrd Mat Sub Matter Collected 583 | 195 280 108 Remotely . | . . . Salvage Created 376 | . 268 108 Parts 26 | . 20 6 Haulers Intercepted 1 | . 1 . Recyclers Shooed 1 | . 1 . Parts Field Recycled . | . . . Retrieved Matter . | . . . Parts Self-Destructed . | . . . Prevented . | . . . Parts Restored . | . . . Kills | -11 -10 -10 ------- Run | Yrd Mat Sub Combat Hostiles Destroyed 12 | . 10 2 Guns 12 | . 10 2 Classes Destroyed 4 | . 3 1 Hauler 1 | . 1 . Swarmer 8 | . 8 . Grunt 2 | . 2 . Subdweller 2 | . . 2 Best Kill Streak 5 | . 5 2 Combat Bots Only 5 | . 5 2 Max Kills in Single Turn 1 | . 1 1 Gunslinging . | . . . Exploded . | . . . Melee . | . . . Uniques/NPCs Destroyed . | . . . Combat | -11 -10 -10 -------- Run | Yrd Mat Sub Hostile Shots Fired 158 | . 115 43 Missed 40 | . 28 12 Hits 118 | . 87 31 Projectile 118 | . 87 31 Critical Strikes 3 | . 3 . Damage Taken 1289 | . 740 549 Core 252 | . 100 152 Absorbed by Shields . | . . . Core Remaining (%) 100 | 100 . . Volleys Fired 55 | . 34 21 Largest 2 | . 2 2 Hottest 70 | . 70 50 Shots Fired 108 | . 66 42 Gun 108 | . 66 42 Cannon . | . . . Launcher . | . . . Special . | . . . Kinetic 82 | . 40 42 Thermal 26 | . 26 . Explosive . | . . . Electromagnetic . | . . . Robot Hit Streak 16 | . 16 16 Robot Miss Streak 4 | . 4 3 Penetration Max . | . . . Secondary Targets 1 | . 1 . Max Gunslinging Chain 1 | . 1 . Shots Hit Robots 74 | . 41 33 Core Hits 23 | . 17 6 Critical Kills . | . . . Critical Parts Destroyed . | . . . Critical Strikes 2 | . 2 . Burn 2 | . 2 . Melee Attacks 1 | . 1 . Impact . | . . . Slashing 1 | . 1 . Piercing . | . . . Sneak Attacks . | . . . Combat Hostiles . | . . . Follow-up Attacks . | . . . Damage Inflicted 807 | . 418 389 Guns 807 | . 418 389 Cannons . | . . . Explosions . | . . . Melee . | . . . Ramming . | . . . Kinetic 580 | . 191 389 Thermal 227 | . 227 . Explosive . | . . . Electromagnetic . | . . . Impact . | . . . Slashing . | . . . Piercing . | . . . Highest Corruption . | . . . Average Corruption . | . . . Corruption Purged . | . . . Corruption Blocked . | . . . Overload Shots . | . . . Overflow Damage . | . . . Projectiles . | . . . Explosions . | . . . Melee . | . . . Knockbacks . | . . . Impact . | . . . Kinetic . | . . . Secondary . | . . . Self-Inflicted Damage . | . . . Shots . | . . . Rammed . | . . . Targets Rammed . | . . . Kicked . | . . . Crushed . | . . . Highest Temperature 206 | . 206 . Average Temperature 89 | . 89 . Received Heat Transfer 108 | . 30 78 Siege Activations . | . . . Martial Activations . | . . . Shielding Activations . | . . . Robots Disrupted . | . . . Combat Hostiles . | . . . Robots Corrupted . | . . . Combat Hostiles . | . . . Parts Fried . | . . . Impact Corruptions . | . . . Robots Melted . | . . . Combat Hostiles . | . . . Parts Melted 2 | . 2 . Heat Transferred 814 | . 814 . Parts Sabotaged . | . . . Parts Stolen . | . . . Parts Stripped . | . . . Power Chain Reactions . | . . . Alert | -11 -10 -10 ------- Run | Yrd Mat Sub Maximum Alert Level . | . . . Low Security (%) 100 | 100 100 . Level 1 . | . . . Level 2 . | . . . Level 3 . | . . . Level 4 . | . . . Level 5 . | . . . High Security . | . . . Max Security . | . . . Peak Influence 82 | . 82 . Initial . | . . . Average 18 | . 20 . Influence Increases 265 | . 265 . Destroy 0b10 Robot/C 200 | . 200 . Destroy 0b10 Robot/NC 5 | . 5 . Destroy Leader 32 | . 32 . Successful Hack 28 | . 28 . Influence Decreases 265 | . 265 . Time Decay 243 | . 243 . Lost Part 22 | . 22 . Squads Dispatched 3 | . 3 . Investigation 2 | . 2 . Extermination . | . . . Reinforcement 1 | . 1 . Assault . | . . . Garrison . | . . . Intercept . | . . . Searches Triggered . | . . . Construction Impeded . | . . . Haulers Reinforced . | . . . Active Scanning Responses . | . . . Cargo Convoy Interrupts . | . . . Stealth | -11 -10 -10 --------- Run | Yrd Mat Sub Distress Signals . | . . . Communications Jammed . | . . . Distress Signals . | . . . Times Spotted 22 | . 18 4 Peak Tracking Total 6 | . 6 2 Tactical Retreats . | . . . Traps | -11 -10 -10 ------- Run | Yrd Mat Sub Traps Triggered 3 | . 3 . Indirectly . | . . . Trap Hack Attempts . | . . . Triggered . | . . . Disarmed . | . . . Reprogrammed . | . . . Reused . | . . . Traps Extracted . | . . . Installed . | . . . Triggered . | . . . Machines | -11 -10 -10 ---------- Run | Yrd Mat Sub Machines Disabled . | . . . Max in Single Turn . | . . . Machines Repaired . | . . . Machines Dismantled . | . . . Machines Sabotaged . | . . . Overloaded Fab Kills . | . . . Hacking | -11 -10 -10 --------- Run | Yrd Mat Sub Machines Accessed 7 | . 7 . Terminals 4 | . 4 . Fabricators . | . . . Repair Stations 1 | . 1 . Recycling Units 2 | . 2 . Scanalyzers . | . . . Garrison Access . | . . . Total Hacks 19 | . 19 . Successful 9 | . 9 . Failed 10 | . 10 . Catastrophic 1 | . 1 . Database Lockouts . | . . . Manual 19 | . 19 . Terminals 11 | . 11 . Fabricators . | . . . Repair Stations 1 | . 1 . Recycling Units 7 | . 7 . Scanalyzers . | . . . Garrison Access . | . . . Terminal Hacks 2 | . 2 . Locate Traps 1 | . 1 . Registered Components 1 | . 1 . Fabricator Hacks . | . . . Repair Station Hacks . | . . . Recycling Unit Hacks . | . . . Scanalyzer . | . . . Garrison Access Hacks . | . . . Unauthorized Hacks 7 | . 7 . Terminals 2 | . 2 . Track 1 | . 1 . Botnet 1 | . 1 . Fabricators . | . . . Repair Stations 1 | . 1 . Mechanics 1 | . 1 . Recycling Units 4 | . 4 . Monitor 1 | . 1 . Reject 1 | . 1 . Recyclers 1 | . 1 . Mask 1 | . 1 . Scanalyzers . | . . . Garrison Access . | . . . Data Cores Recovered . | . . . Used . | . . . Hacking Detections 5 | . 5 . Full Trace Events 1 | . 1 . Feedback Events . | . . . Feedback Blocked . | . . . Robot Schematics Acquired . | . . . Robots Built . | . . . Authchips . | . . . Time . | . . . Total Robot Build Rating . | . . . Part Schematics Acquired . | . . . Parts Built . | . . . Authchips . | . . . Time . | . . . Total Part Build Rating . | . . . Part Studies Acquired . | . . . Parts Repaired . | . . . Time . | . . . Parts Recycled . | . . . Recycled Matter . | . . . Retrieved Matter . | . . . Retrieved Components . | . . . Parts Scanalyzed . | . . . Part Schematics Acquired . | . . . Parts Damaged . | . . . Bothacking | -11 -10 -10 ------------ Run | Yrd Mat Sub Used RIF Installer . | . . . Robots Hacked . | . . . Non-combat . | . . . Combat . | . . . Robot Hacks Applied . | . . . Relay Couplers Released . | . . . Fabnet Peak Effective % . | . . . Robots Rewired . | . . . Allies Hacked . | . . . Hacks Repelled . | . . . Allies | -11 -10 -10 -------- Run | Yrd Mat Sub Total Allies . | . . . Largest Group . | . . . Highest-Rated Group . | . . . Highest-Rated Ally . | . . . Total Orders . | . . . Ally Attacks . | . . . Total Damage . | . . . Kills . | . . . Allies Corrupted . | . . . Allies Melted . | . . . Intel | -11 -10 -10 ------- Run | Yrd Mat Sub Active Infowar (turns) . | . . . Robot Analysis Total . | . . . Derelict Logs Recovered . | . . . Drone Launches . | . . . Drone Recoveries . | . . . Exploration | -11 -10 -10 ------------- Run | Yrd Mat Sub Turns Passed 1277 | 91 1046 140 Spaces Moved 647 | 69 533 45 Core 18 | 18 . . Treads 339 | . 294 45 Legs 290 | 51 239 . Wheels . | . . . Hover . | . . . Flight . | . . . Fastest Speed 50 | 50 120 160 Average Speed 162 | 107 170 160 Slowest Speed 190 | 190 190 160 Overloaded Moves . | . . . Propulsion Burnouts . | . . . Robots Hopped . | . . . Potential Cave-ins . | . . . Cave-ins Triggered . | . . . Exploration Rate (%) 33 | 5 92 3 Regions Visited 2 Branch Regions 1 Pre-discovered Areas . | . . . Known Exits Taken . | . . . Unknown Exits Taken 2 | 1 1 . Scrap Searched . | . . . Spaces Dug . | . . . Terrain Destroyed . | . . . Melee . | . . . Projectile . | . . . AOE . | . . . Terrain Rammed . | . . . Walls Destroyed . | . . . Machines Disabled . | . . . Actions | -11 -10 -10 --------- Run | Yrd Mat Sub Total 771 | 85 612 74 Wait 23 | . 23 . Move 645 | 68 532 45 Hop . | . . . Pick Up 26 | 11 10 5 Fast Attach 1 | 1 . . Attach 12 | 5 6 1 Detach 1 | . 1 . Swap 4 | . 2 2 Drop 3 | . 3 . Fire 55 | . 34 21 Melee 1 | . 1 . Ram . | . . . Kick . | . . . Crush . | . . . Escape Stasis . | . . . Rewire . | . . . Trap . | . . . Miscellaneous . | . . . Route ------- -11/Scrapyard -10/Materials (discovered 3 exits: [*Mat] / [*Min] / [*Sub]) -10/Subcaves History --------- Turn | Location | Event 25 | -11/Scrapyard | Discovered new exit (range 16) 92 | -11/Scrapyard | Entered Materials 313 | -10/Materials | Discovered new exit (range 14) 317 | -10/Materials | Build established: Mutant 673 | -10/Materials | Lost 5 parts (1p2n1u1w) 751 | -10/Materials | Discovered new exit (range 16) 965 | -10/Materials | Discovered new exit (range 8) 1138 | -10/Materials | Entered Subcaves 1139 | -10/Subcaves | Approached by a straggling Scientist 1164 | -10/Subcaves | Core integrity fell below 50% 1271 | -10/Subcaves | Core integrity fell below 20% 1278 | -10/Subcaves | Destroyed by G-47 Trooper with Particle Gun Last Messages --------------- 01159_ Ion Engine destroyed. 01180_ Q2-U81(R) destroyed. C4-8L5(c): "I think it's somewhere east of here" 01191_ Subatomizers dissect the Sub. Machine Gun. 01199_ 19-W4S(R) destroyed. 01205_ Acquired 50 matter. 01206_ Subatomizers dissect the Sub. Machine Gun. 01208_ Acquired 53 matter. 01212_ Acquired Sub. Power Source. 01216_ Acquired Sub. Machine Gun. 01218_ Acquired Sub. Power Source. 01224_ Acquired Sub. Optics. 01228_ Acquired Disposable Heat Sink. 01232_ Subatomizers dissect the Sub. Monowheel. 01232_ Acquired 5 matter. C4-8L5(c): "I think it's somewhere east of here" 01269_ Subatomizers dissect the Sub. Monowheel. 01274_ Lgt. Treads destroyed. Map ----- +----------------------------------------------------+ | ?????????????????????????????????????????????????? | | ?????????????????????????????????????????????????? | | ?????????????????????????????????????????????????? | | ?????????????????????????????????????????????????? | | ?????????????????????????????????????????????????? | | ?????????????????????????????????????????????????? | | ?????????????????????????????????????????????????? | | ?????????????????????????????????????????????????? | | ?????????????????????????????????????????????????? | | ?????????????????????????????????????????????????? | | ?????????????????????????????????????????????????? | | ?????????????????????????????????????????????????? | | ?????????????????????????????????????????????????? | | ??????????????????????####???????????????????????? | | ?????????????????????## #???????????????????????? | | ?????????????????????? #???????????????????????? | | ?????????????????????? ##??????????????????????? | | ??????????????????????# ##?????????????????????? | | ??????????????????????# #?????????????????????? | | ???????# ????????????# #?????????????????????? | | ???????? ??????????# #?????????????????????? | | ?????????# ?????????## ##?????????????????????? | | ??????????# ?###?????# ##?###??????????????????? | | ??????????# ## #????# ### #??# ##???????????? | | ??????????# ##### ## # #???????????? | | ??????????# =& ! @ g ??????? | | ?????????# g #?????????????? | | ???????# ## # # ####?????????????? | | ??????? ????## ###### ##????????????????? | | ???????????????# #?????##?????????????????? | | ???????????????#### ##???????????????????????? | | ?????????????????## ##??????????????????????? | | ????????????????## #??????????????????????? | | ????????????????# #??????????????????????? | | ????????????????# #??????????????????????? | | ?????????? #??????????????????????? | | ????????# ######??????????????????????? | | ????????## ## ##???????????????????????????? | | ?????????#???# #????????????????????????????? | | ????????????# ????????????????????????????? | | ????????????#### ????????????????????????????? | | ???????????????## ????????????????????????????? | | ????????????????## ????????????????????????????? | | ?????????????????# ????????????????????????????? | | ?????????????????####????????????????????????????? | | ?????????????????????????????????????????????????? | | ?????????????????????????????????????????????????? | | ?????????????????????????????????????????????????? | | ?????????????????????????????????????????????????? | | ?????????????????????????????????????????????????? | +----------------------------------------------------+ Best States ------------- Heat Dissipation 25 Energy Generation 15 Energy Capacity 250 Matter Stores 300 Matter Capacity 300 Sight Range 16 Terrain Scan Density 10 Armor Coverage 150 Evasion (%) 55 Recoil Reduction 2 Item Schematics ----------------- None Robot Schematics ------------------ None Fabricated ------------ Nothing Repaired ---------- Nothing Studied --------- None Alien Tech Used ----------------- None Achievements -------------- None Challenges ------------ None Game ------ Seed ArmorSapperBroadsword Manual? 0 Play Time 00:08:30 Cumulative 89.8 hours Start 2026.01.01 @ 11:44:56 End 2026.01.01 @ 11:52:22 Sessions 1 Manual Loads 0 Difficulty Rogue Special Mode None Game No. 147 Rogue 121 Adventurer 20 Explorer 6 Win Type - Total 1 Types 0/0/0/1/0/0/0/0/0/0 Lore% 56 Gallery% 46 Achievement% 37 Wizard Run 0 Options --------- Layout 1 ASCII 0 Keyboard 0 Movement Numpad Keybinds 0 Fullscreen 2 Font 24/Smallcaps Map View 50x35 Zoom Use 0% Tactical HUD 1 Map Filters NONE Filters NONE Steam 1 RUN: 730714e5-0144-444c-a9f8-a702c2c70705